[Event "33rd Croatian Junior League 2024"]
[Site "Novalja"]
[Date "2024.04.03"]
[Round "3.12"]
[White "Mesic, Josip"]
[Black "Hajdinic, Ema"]
[Result "0-1"]
[ECO "E06"]
[WhiteElo "1745"]
[BlackElo "1884"]
[Annotator "NA RC"]
[PlyCount "138"]
[EventDate "2024.03.28"]
[EventType "team-tourn"]
[EventCountry "CRO"]
[SourceTitle "playchess.com"]
[Source "ChessBase"]
[SourceQuality "1"]
[TimeControl "5400+30"]

1. d4 {[%emt 0:00:03]} Nf6 {[%emt 0:00:20]} 2. c4 {[%emt 0:00:15]} e6 {[%emt 0:00:27]} 3. g3 {[%emt 0:00:04]} Be7 {[%emt 0:00:20]} 4. Bg2 {[%emt 0:00:25]} d5 {[%emt 0:00:22]} 5. Nc3 {[%emt 0:00:32]} O-O {[%emt 0:00:37]} 6. Nf3 {[%emt 0:00:11]} dxc4 {[%emt 0:00:26]} 7. Qa4 {[%emt 0:01:34]} a6 {[%emt 0:00:49]} 8. Qxc4 {[%emt 0:06:03]} b5 {[%emt 0:00:31]} 9. Qd3 {[%emt 0:00:06]} Bb7 {[%emt 0:00:47]} 10. Bg5 {[%emt 0:06:30]} Nbd7 {[%emt 0:02:03]} 11. Bxf6 {[%emt 0:02:14]} Bxf6 {[%emt 0:06:03]} 12. Ng5 {[%emt 0:03:37]} Bxg5 {[%emt 0:02:16]} 13. Bxb7 {[%emt 0:00:09]} Ra7 {[%emt 0:03:30]} 14. Bc6 {[%emt 0:03:55]} Nb8 {[%emt 0:04:07]} 15. Be4 {[%emt 0:03:25]} f5 {[%emt 0:02:17]} 16. Bg2 {[%emt 0:00:44]} c5 {[%emt 0:00:34]} 17. dxc5 {[%emt 0:01:15]} Rd7 {[%emt 0:00:10]} 18. Qc2 {[%emt 0:01:14]} Bd2+ {[%emt 0:07:08]} 19. Kf1 {[%emt 0:00:01]} Qc7 {[%emt 0:01:53]} 20. b4 {[%emt 0:01:35]} Qe5 {[%emt 0:02:23]} 21. Qb3 {[%emt 0:02:25]} Bxc3 {[%emt 0:00:35]} 22. Rc1 {[%emt 0:00:13]} Bd2 {[%emt 0:00:49]} 23. Rc2 {[%emt 0:00:29]} Bxb4 {[%emt 0:00:53]} 24. Bf3 {[%emt 0:01:27]} Rd1+ {[%emt 0:02:20]} 25. Kg2 {[%emt 0:00:07]} Rxh1 {[%emt 0:00:07]} 26. Kxh1 {[%emt 0:00:11]} Bxc5 {[%emt 0:00:14]} 27. Kg2 {[%emt 0:00:52]} Nd7 {[%emt 0:00:30]} 28. a4 {[%emt 0:00:51]} bxa4 {[%emt 0:04:41]} 29. Qb7 {[%emt 0:01:25]} Nf6 {[%emt 0:01:25]} 30. Qxa6 {[%emt 0:00:18]} Ng4 {[%emt 0:01:22]} 31. Qxa4 {[%emt 0:01:22]} Qd4 {[%emt 0:00:46]} 32. Qxd4 {[%emt 0:02:34]} Bxd4 {[%emt 0:00:04]} 33. e3 {[%emt 0:00:33]} Bf6 {[%emt 0:00:23]} 34. Rc6 {[%emt 0:00:17]} Kf7 {[%emt 0:00:25]} 35. Rc7+ {[%emt 0:00:35]} Be7 {[%emt 0:00:07]} 36. h3 {[%emt 0:00:24]} Nf6 {[%emt 0:00:24]} 37. g4 {[%emt 0:00:46]} Rd8 {[%emt 0:01:25]} 38. gxf5 {[%emt 0:00:34]} exf5 {[%emt 0:00:08]} 39. Kg3 {[%emt 0:00:38]} Ke6 {[%emt 0:00:45]} 40. Ra7 {[%emt 0:00:41]} Bd6+ {[%emt 0:00:20]} 41. Kg2 {[%emt 0:00:13]} Rd7 {[%emt 0:00:30]} 42. Ra6 {[%emt 0:00:19]} Ne4 {[%emt 0:00:40]} 43. Be2 {[%emt 0:00:41]} Rc7 {[%emt 0:00:10]} 44. f3 {[%emt 0:00:54]} Rc2 {[%emt 0:01:55]} 45. fxe4 {[%emt 0:00:41]} Rxe2+ {[%emt 0:00:05]} 46. Kf3 {[%emt 0:00:12]} Rd2 {[%emt 0:00:14]} 47. exf5+ {[%emt 0:00:28]} Kxf5 {[%emt 0:00:09]} 48. Ra7 {[%emt 0:00:19]} Be5 {[%emt 0:00:12]} 49. e4+ {[%emt 0:00:35]} Ke6 {[%emt 0:00:08]} 50. Ra6+ {[%emt 0:00:20]} Rd6 {[%emt 0:00:05]} 51. Ra3 {[%emt 0:00:41]} h5 {[%emt 0:00:11]} 52. Rb3 {[%emt 0:00:34]} Rc6 {[%emt 0:00:04]} 53. Rb7 {[%emt 0:01:31]} Rc3+ {[%emt 0:00:05]} 54. Kf2 {[%emt 0:01:04]} Rxh3 {[%emt 0:00:09]} 55. Rb6+ {[%emt 0:00:24]} Kf7 {[%emt 0:00:19]} 56. Rb7+ {[%emt 0:00:58]} Kf6 {[%emt 0:00:09]} 57. Rb6+ {[%emt 0:00:25]} Kg5 {[%emt 0:00:05]} 58. Rb5 {[%emt 0:00:23]} Kf4 {[%emt 0:00:07]} 59. Kg2 {[%emt 0:00:36]} Re3 {[%emt 0:00:09]} 60. Ra5 {[%emt 0:01:28]} g5 {[%emt 0:00:11]} 61. Ra8 {[%emt 0:00:17]} Rxe4 {[%emt 0:00:50]} 62. Rf8+ {[%emt 0:00:33]} Kg4 {[%emt 0:00:05]} 63. Rg8 {[%emt 0:00:33]} Bf4 {[%emt 0:00:13]} 64. Rh8 {[%emt 0:00:25]} Re2+ {[%emt 0:00:06]} 65. Kf1 {[%emt 0:00:33]} Rd2 {[%emt 0:00:07]} 66. Ra8 {[%emt 0:00:26]} Kf3 {[%emt 0:00:21]} 67. Ra1 {[%emt 0:00:24]} h4 {[%emt 0:00:12]} 68. Kg1 {[%emt 0:00:16]} g4 {[%emt 0:00:15]} 69. Ra3+ {[%emt 0:00:09]} Be3+ {[%emt 0:00:15]} 0-1

[Event "33rd Croatian Junior League 2024"]
[Site "Novalja"]
[Date "2024.04.04"]
[Round "4.1"]
[White "Grgantov, Marin"]
[Black "Novosel, Lovro"]
[Result "0-1"]
[ECO "B12"]
[WhiteElo "2142"]
[BlackElo "2348"]
[Annotator "RC"]
[PlyCount "138"]
[EventDate "2024.03.28"]
[EventType "team-tourn"]
[EventCountry "CRO"]
[SourceTitle "playchess.com"]
[Source "ChessBase"]
[SourceQuality "1"]
[TimeControl "5400+30"]

1. e4 {[%emt 0:00:03]} c6 {[%emt 0:00:10]} 2. d4 {[%emt 0:00:16]} d5 {[%emt 0:00:06]} 3. e5 {[%emt 0:00:05]} Bf5 {[%emt 0:00:09]} 4. h4 {[%emt 0:00:06]} h5 {[%emt 0:00:14]} 5. Bd3 {[%emt 0:00:05]} Bxd3 {[%emt 0:00:14]} 6. Qxd3 {[%emt 0:00:05]} e6 {[%emt 0:00:10]} 7. Nf3 {[%emt 0:00:26]} Be7 {[%emt 0:02:00]} 8. c4 {[%emt 0:08:59]} Nh6 {[%emt 0:15:49]} 9. Nc3 {[%emt 0:09:33]} Nf5 {[%emt 0:02:37]} 10. g3 {[%emt 0:01:10]} dxc4 {[%emt 0:06:55]} 11. Qxc4 {[%emt 0:00:33]} Nd7 {[%emt 0:00:32]} 12. O-O {[%emt 0:11:47]} Nb6 {[%emt 0:08:33]} 13. Qd3 {[%emt 0:01:52]} Nd5 {[%emt 0:02:03]} 14. Ne4 {[%emt 0:01:47]} Nb4 {[%emt 0:03:19]} 15. Qc3 {[%emt 0:16:59]} Qd5 {[%emt 0:03:37]} 16. a3 {[%emt 0:02:14]} Qxe4 {[%emt 0:03:56]} 17. axb4 {[%emt 0:00:06]} a6 {[%emt 0:02:56]} 18. Re1 {[%emt 0:08:38]} Qd5 {[%emt 0:01:55]} 19. Ra5 {[%emt 0:00:22]} Qd7 {[%emt 0:00:12]} 20. Re4 {[%emt 0:00:57]} Bd8 {[%emt 0:06:16]} 21. Ra1 {[%emt 0:03:34]} Qd5 {[%emt 0:00:13]} 22. Rf4 {[%emt 0:01:32]} Bb6 {[%emt 0:06:38]} 23. Be3 {[%emt 0:01:46]} O-O-O {[%emt 0:01:06]} 24. Rc1 {[%emt 0:04:57]} Rd7 {[%emt 0:00:51]} 25. Rd1 {[%emt 0:12:05]} Bd8 {[%emt 0:06:47]} 26. Rd3 {[%emt 0:07:51]} Be7 {[%emt 0:04:05]} 27. Bd2 {[%emt 0:03:22]} Qb5 {[%emt 0:03:44]} 28. Ng5 {[%emt 0:01:00]} Bxg5 {[%emt 0:10:49]} 29. hxg5 {[%emt 0:00:01]} g6 {[%emt 0:00:20]} 30. Be3 {[%emt 0:01:33]} Ne7 {[%emt 0:01:07]} 31. Rf3 {[%emt 0:01:17]} Nd5 {[%emt 0:00:05]} 32. Qb3 {[%emt 0:00:29]} Qxb4 {[%emt 0:02:55]} 33. Qxb4 {[%emt 0:00:16]} Nxb4 {[%emt 0:00:01]} 34. Rb3 {[%emt 0:00:01]} Nd5 {[%emt 0:00:16]} 35. Bd2 {[%emt 0:00:20]} b6 {[%emt 0:03:20]} 36. Ra3 {[%emt 0:00:01]} Kb7 {[%emt 0:00:17]} 37. Kf1 {[%emt 0:00:15]} Nc7 {[%emt 0:01:11]} 38. Rf4 {[%emt 0:00:12]} Nb5 {[%emt 0:00:29]} 39. Raf3 {[%emt 0:01:08]} Rh7 {[%emt 0:01:34]} 40. Be3 {[%emt 0:01:21]} Nc7 {[%emt 0:00:19]} 41. Rh4 {[%emt 0:00:01]} Rg7 {[%emt 0:00:43]} 42. b3 {[%emt 0:00:43]} Nd5 {[%emt 0:00:06]} 43. Bc1 {[%emt 0:00:00]} Ne7 {[%emt 0:00:20]} 44. Bb2 {[%emt 0:00:49]} Nf5 {[%emt 0:00:16]} 45. Re4 {[%emt 0:00:24]} Rg8 {[%emt 0:03:45]} 46. Rff4 {[%emt 0:00:16]} Rd5 {[%emt 0:00:00]} 47. Ke1 {[%emt 0:01:05]} Rgd8 {[%emt 0:00:00]} 48. f3 {[%emt 0:00:38]} c5 {[%emt 0:00:11]} 49. g4 {[%emt 0:00:11]} hxg4 {[%emt 0:00:04]} 50. fxg4 {[%emt 0:00:00]} Nxd4 {[%emt 0:00:16]} 51. Bxd4 {[%emt 0:00:25]} Rxd4 {[%emt 0:00:09]} 52. Rxd4 {[%emt 0:00:22]} Rxd4 {[%emt 0:01:27]} 53. Rxf7+ {[%emt 0:00:00]} Kc6 {[%emt 0:00:01]} 54. Rg7 {[%emt 0:02:05]} Kd5 {[%emt 0:00:21]} 55. Rxg6 {[%emt 0:00:28]} Kxe5 {[%emt 0:00:24]} 56. Rg8 {[%emt 0:00:13]} Rxg4 {[%emt 0:00:06]} 57. Kd2 {[%emt 0:00:00]} Kf5 {[%emt 0:01:19]} 58. Kc3 {[%emt 0:00:12]} Rxg5 {[%emt 0:00:22]} 59. Rb8 {[%emt 0:00:02]} b5 {[%emt 0:00:17]} 60. Rb6 {[%emt 0:00:01]} Rg3+ {[%emt 0:00:30]} 61. Kb2 {[%emt 0:00:01]} Ke5 {[%emt 0:00:21]} 62. Rxa6 {[%emt 0:00:05]} Kd5 {[%emt 0:00:09]} 63. Kc2 {[%emt 0:00:40]} e5 {[%emt 0:00:46]} 64. Ra8 {[%emt 0:01:25]} Rg2+ {[%emt 0:00:12]} 65. Kc1 {[%emt 0:00:17]} Kd4 {[%emt 0:00:10]} 66. Rc8 {[%emt 0:00:22]} e4 {[%emt 0:00:18]} 67. b4 {[%emt 0:00:37]} c4 {[%emt 0:00:15]} 68. Rb8 {[%emt 0:00:16]} Kc3 {[%emt 0:00:04]} 69. Rxb5 {[%emt 0:00:33]} Rg1# {[%emt 0:00:04]} 0-1

[Event "33rd Croatian Junior League 2024"]
[Site "Novalja"]
[Date "2024.04.04"]
[Round "4.2"]
[White "Karlusic, Luka"]
[Black "Begic, Domagoj"]
[Result "1-0"]
[ECO "A85"]
[WhiteElo "2232"]
[BlackElo "2069"]
[Annotator "RC"]
[PlyCount "89"]
[EventDate "2024.03.28"]
[EventType "team-tourn"]
[EventCountry "CRO"]
[SourceTitle "playchess.com"]
[Source "ChessBase"]
[SourceQuality "1"]
[TimeControl "5400+30"]

1. d4 {[%emt 0:00:08]} e6 {[%emt 0:05:31]} 2. c4 {[%emt 0:00:23]} f5 {[%emt 0:00:04]} 3. Nc3 {[%emt 0:00:59]} Nf6 {[%emt 0:00:05]} 4. e3 {[%emt 0:01:36]} b6 {[%emt 0:00:37]} 5. Bd3 {[%emt 0:04:26]} Bb7 {[%emt 0:00:05]} 6. f3 {[%emt 0:01:44]} Nc6 {[%emt 0:00:26]} 7. Nge2 {[%emt 0:02:53]} g6 {[%emt 0:05:15]} 8. e4 {[%emt 0:09:06]} Bg7 {[%emt 0:02:21]} 9. Bg5 {[%emt 0:15:03]} h6 {[%emt 0:01:08]} 10. Bh4 {[%emt 0:01:17]} g5 {[%emt 0:01:05]} 11. Bf2 {[%emt 0:01:26]} Qe7 {[%emt 0:00:28]} 12. exf5 {[%emt 0:04:23]} exf5 {[%emt 0:00:08]} 13. Bxf5 {[%emt 0:02:08]} O-O-O {[%emt 0:00:04]} 14. Qa4 {[%emt 0:03:14]} a6 {[%emt 0:03:17]} 15. O-O-O {[%emt 0:02:11]} Kb8 {[%emt 0:00:27]} 16. Rhe1 {[%emt 0:09:32]} Qf7 {[%emt 0:00:56]} 17. Ng3 {[%emt 0:11:02]} Ne7 {[%emt 0:02:20]} 18. Qc2 {[%emt 0:02:49]} d5 {[%emt 0:00:25]} 19. Be6 {[%emt 0:02:44]} Qf8 {[%emt 0:00:15]} 20. c5 {[%emt 0:01:06]} b5 {[%emt 0:00:26]} 21. Nf5 {[%emt 0:02:26]} Nxf5 {[%emt 0:01:21]} 22. Qxf5 {[%emt 0:01:22]} Nh5 {[%emt 0:00:32]} 23. Qxf8 {[%emt 0:03:18]} Rhxf8 {[%emt 0:00:05]} 24. Bg4 {[%emt 0:01:49]} Nf6 {[%emt 0:00:04]} 25. Bf5 {[%emt 0:03:09]} Rfe8 {[%emt 0:08:37]} 26. Bg6 {[%emt 0:00:55]} Rxe1 {[%emt 0:00:12]} 27. Rxe1 {[%emt 0:00:01]} Bc8 {[%emt 0:00:48]} 28. Re7 {[%emt 0:01:09]} Rd7 {[%emt 0:00:04]} 29. Rxd7 {[%emt 0:00:16]} Bxd7 {[%emt 0:00:02]} 30. Bg3 {[%emt 0:00:53]} Kc8 {[%emt 0:00:09]} 31. Be5 {[%emt 0:00:47]} c6 {[%emt 0:00:03]} 32. Ne2 {[%emt 0:01:12]} Kd8 {[%emt 0:00:04]} 33. Ng3 {[%emt 0:00:34]} a5 {[%emt 0:00:06]} 34. a3 {[%emt 0:00:24]} a4 {[%emt 0:00:06]} 35. Kd2 {[%emt 0:02:22]} Ke7 {[%emt 0:00:04]} 36. Kc3 {[%emt 0:02:09]} Kf8 {[%emt 0:00:16]} 37. h3 {[%emt 0:01:16]} Ne8 {[%emt 0:01:16]} 38. Bxe8 {[%emt 0:00:46]} Bxe8 {[%emt 0:00:04]} 39. Nf5 {[%emt 0:01:04]} Bxe5 {[%emt 0:00:20]} 40. dxe5 {[%emt 0:00:01]} h5 {[%emt 0:00:01]} 41. Kd4 {[%emt 0:00:52]} h4 {[%emt 0:00:25]} 42. Ke3 {[%emt 0:01:24]} Bg6 {[%emt 0:00:09]} 43. Nd4 {[%emt 0:00:06]} Kf7 {[%emt 0:00:21]} 44. Nxc6 {[%emt 0:00:36]} Ke6 {[%emt 0:00:03]} 45. Kd4 {[%emt 0:00:27]} 1-0

[Event "33rd Croatian Junior League 2024"]
[Site "Novalja"]
[Date "2024.04.04"]
[Round "4.3"]
[White "Poljak, Stipe"]
[Black "Mazuran, Gabrijel"]
[Result "1/2-1/2"]
[ECO "E24"]
[WhiteElo "1979"]
[BlackElo "2054"]
[Annotator "RC"]
[PlyCount "78"]
[EventDate "2024.03.28"]
[EventType "team-tourn"]
[EventCountry "CRO"]
[SourceTitle "playchess.com"]
[Source "ChessBase"]
[SourceQuality "1"]
[TimeControl "5400+30"]

1. d4 {[%emt 0:00:09]} Nf6 {[%emt 0:00:05]} 2. c4 {[%emt 0:00:08]} e6 {[%emt 0:00:05]} 3. Nc3 {[%emt 0:00:07]} Bb4 {[%emt 0:00:08]} 4. a3 {[%emt 0:00:40]} Bxc3+ {[%emt 0:00:09]} 5. bxc3 {[%emt 0:00:02]} c5 {[%emt 0:01:22]} 6. f3 {[%emt 0:00:26]} d6 {[%emt 0:02:44]} 7. e4 {[%emt 0:01:59]} Nc6 {[%emt 0:04:57]} 8. Be3 {[%emt 0:08:03]} b6 {[%emt 0:03:31]} 9. Bd3 {[%emt 0:01:53]} O-O {[%emt 0:02:40]} 10. Ne2 {[%emt 0:11:33]} Qc7 {[%emt 0:04:01]} 11. Ng3 {[%emt 0:10:51]} cxd4 {[%emt 0:24:54]} 12. cxd4 {[%emt 0:03:05]} e5 {[%emt 0:00:19]} 13. O-O {[%emt 0:28:20]} exd4 {[%emt 0:19:48]} 14. Bf2 {[%emt 0:00:44]} Nd7 {[%emt 0:02:55]} 15. Rc1 {[%emt 0:13:42]} Nc5 {[%emt 0:00:59]} 16. Bb1 {[%emt 0:00:45]} Be6 {[%emt 0:02:30]} 17. Nh5 {[%emt 0:07:12]} f5 {[%emt 0:08:14]} 18. Nf4 {[%emt 0:01:17]} fxe4 {[%emt 0:00:51]} 19. Nxe6 {[%emt 0:00:09]} Nxe6 {[%emt 0:00:09]} 20. Bxe4 {[%emt 0:00:11]} Nf4 {[%emt 0:06:03]} 21. Re1 {[%emt 0:02:55]} Rac8 {[%emt 0:03:28]} 22. Bd5+ {[%emt 0:03:30]} Kh8 {[%emt 0:00:14]} 23. Bxc6 {[%emt 0:00:31]} Qxc6 {[%emt 0:00:08]} 24. Bxd4 {[%emt 0:00:07]} Rce8 {[%emt 0:03:28]} 25. Qd2 {[%emt 0:01:59]} Rxe1+ {[%emt 0:02:15]} 26. Qxe1 {[%emt 0:01:42]} Re8 {[%emt 0:03:46]} 27. Qd2 {[%emt 0:01:20]} Ne2+ {[%emt 0:00:55]} 28. Kf2 {[%emt 0:00:31]} Nxc1 {[%emt 0:00:09]} 29. Qxc1 {[%emt 0:00:28]} d5 {[%emt 0:01:27]} 30. Qg5 {[%emt 0:00:31]} Qg6 {[%emt 0:02:19]} 31. Qxd5 {[%emt 0:00:22]} Qc2+ {[%emt 0:00:14]} 32. Kg3 {[%emt 0:00:11]} Qg6+ {[%emt 0:00:34]} 33. Kf2 {[%emt 0:00:15]} h6 {[%emt 0:01:06]} 34. Qd7 {[%emt 0:00:57]} Rg8 {[%emt 0:00:31]} 35. Qxa7 {[%emt 0:00:46]} Qc2+ {[%emt 0:00:16]} 36. Kg3 {[%emt 0:00:09]} Qg6+ {[%emt 0:00:34]} 37. Kf2 {[%emt 0:00:50]} Qc2+ {[%emt 0:00:36]} 38. Kg3 {[%emt 0:00:25]} Qg6+ {[%emt 0:00:32]} 39. Kf2 {[%emt 0:00:38]} Qc2+ {[%emt 0:00:31]} 1/2-1/2

[Event "33rd Croatian Junior League 2024"]
[Site "Novalja"]
[Date "2024.04.04"]
[Round "4.4"]
[White "Simunkovic, Bartol"]
[Black "Pehar, Borna"]
[Result "0-1"]
[ECO "B32"]
[WhiteElo "1885"]
[BlackElo "1988"]
[Annotator "RC"]
[PlyCount "88"]
[EventDate "2024.03.28"]
[EventType "team-tourn"]
[EventCountry "CRO"]
[SourceTitle "playchess.com"]
[Source "ChessBase"]
[SourceQuality "1"]
[TimeControl "5400+30"]

1. e4 {[%emt 0:00:05]} c5 {[%emt 0:00:16]} 2. Nf3 {[%emt 0:00:05]} Nc6 {[%emt 0:00:06]} 3. d4 {[%emt 0:00:05]} cxd4 {[%emt 0:00:08]} 4. Nxd4 {[%emt 0:00:04]} e5 {[%emt 0:00:38]} 5. Nb5 {[%emt 0:00:06]} d6 {[%emt 0:00:07]} 6. N1c3 {[%emt 0:00:09]} a6 {[%emt 0:00:08]} 7. Na3 {[%emt 0:00:08]} Be6 {[%emt 0:01:01]} 8. Nc4 {[%emt 0:04:26]} Rb8 {[%emt 0:01:37]} 9. a4 {[%emt 0:06:21]} Nb4 {[%emt 0:10:31]} 10. Be2 {[%emt 0:02:34]} Rc8 {[%emt 0:02:40]} 11. b3 {[%emt 0:02:04]} Be7 {[%emt 0:24:15]} 12. Ba3 {[%emt 0:14:29]} a5 {[%emt 0:00:16]} 13. Nb5 {[%emt 0:05:38]} d5 {[%emt 0:08:31]} 14. exd5 {[%emt 0:01:23]} Bxd5 {[%emt 0:01:10]} 15. c3 {[%emt 0:10:52]} Bxc4 {[%emt 0:05:46]} 16. Bxc4 {[%emt 0:02:15]} Qxd1+ {[%emt 0:01:00]} 17. Kxd1 {[%emt 0:00:08]} Nc6 {[%emt 0:02:24]} 18. Bxe7 {[%emt 0:02:50]} Kxe7 {[%emt 0:00:35]} 19. Ke2 {[%emt 0:00:28]} Nf6 {[%emt 0:01:20]} 20. Rad1 {[%emt 0:01:13]} Rhd8 {[%emt 0:00:35]} 21. f3 {[%emt 0:10:40]} Rxd1 {[%emt 0:11:50]} 22. Rxd1 {[%emt 0:00:34]} Rd8 {[%emt 0:01:40]} 23. Rxd8 {[%emt 0:00:10]} Nxd8 {[%emt 0:00:08]} 24. Ke3 {[%emt 0:03:36]} Ne6 {[%emt 0:02:51]} 25. Bxe6 {[%emt 0:02:07]} Kxe6 {[%emt 0:00:02]} 26. c4 {[%emt 0:01:22]} Nd7 {[%emt 0:01:52]} 27. Kd3 {[%emt 0:11:02]} Nc5+ {[%emt 0:00:07]} 28. Kc3 {[%emt 0:00:11]} Na6 {[%emt 0:01:11]} 29. Na3 {[%emt 0:03:03]} Nb4 {[%emt 0:04:21]} 30. Nb1 {[%emt 0:03:10]} f5 {[%emt 0:01:15]} 31. Nd2 {[%emt 0:00:59]} b6 {[%emt 0:01:03]} 32. c5 {[%emt 0:06:22]} bxc5 {[%emt 0:01:41]} 33. Kc4 {[%emt 0:00:08]} Nc6 {[%emt 0:00:48]} 34. Kxc5 {[%emt 0:00:41]} Nd4 {[%emt 0:01:25]} 35. f4 {[%emt 0:03:23]} h5 {[%emt 0:05:06]} 36. fxe5 {[%emt 0:01:14]} Kxe5 {[%emt 0:00:00]} 37. Nf3+ {[%emt 0:01:02]} Nxf3 {[%emt 0:00:28]} 38. gxf3 {[%emt 0:00:01]} g5 {[%emt 0:00:19]} 39. b4 {[%emt 0:00:58]} axb4 {[%emt 0:00:07]} 40. Kxb4 {[%emt 0:00:29]} g4 {[%emt 0:02:22]} 41. f4+ {[%emt 0:02:21]} Kd6 {[%emt 0:00:43]} 42. Kc4 {[%emt 0:01:50]} h4 {[%emt 0:00:06]} 43. Kd4 {[%emt 0:00:24]} g3 {[%emt 0:00:15]} 44. hxg3 {[%emt 0:00:33]} h3 {[%emt 0:00:02]} 0-1

[Event "33rd Croatian Junior League 2024"]
[Site "Novalja"]
[Date "2024.04.04"]
[Round "4.5"]
[White "Gal, Andrej"]
[Black "Vucenovic, Damian"]
[Result "1-0"]
[ECO "A14"]
[WhiteElo "2274"]
[BlackElo "2145"]
[Annotator "RC"]
[PlyCount "95"]
[EventDate "2024.03.28"]
[EventType "team-tourn"]
[EventCountry "CRO"]
[SourceTitle "playchess.com"]
[Source "ChessBase"]
[SourceQuality "1"]
[TimeControl "5400+30"]

1. d4 {[%emt 0:00:11]} d5 {[%emt 0:01:08]} 2. c4 {[%emt 0:00:05]} e6 {[%emt 0:00:05]} 3. Nf3 {[%emt 0:00:04]} Nf6 {[%emt 0:00:05]} 4. g3 {[%emt 0:00:06]} Be7 {[%emt 0:00:12]} 5. Bg2 {[%emt 0:00:04]} O-O {[%emt 0:00:28]} 6. Nc3 {[%emt 0:00:09]} c6 {[%emt 0:00:56]} 7. O-O {[%emt 0:00:09]} a5 {[%emt 0:01:01]} 8. b3 {[%emt 0:01:54]} Nbd7 {[%emt 0:06:12]} 9. Bb2 {[%emt 0:00:35]} b6 {[%emt 0:00:26]} 10. Nd2 {[%emt 0:14:20]} Bb7 {[%emt 0:05:59]} 11. e4 {[%emt 0:01:38]} Rc8 {[%emt 0:04:54]} 12. Re1 {[%emt 0:07:35]} h6 {[%emt 0:05:21]} 13. Rc1 {[%emt 0:06:37]} Re8 {[%emt 0:03:50]} 14. cxd5 {[%emt 0:01:48]} cxd5 {[%emt 0:01:28]} 15. e5 {[%emt 0:00:33]} Nh7 {[%emt 0:00:42]} 16. Bf1 {[%emt 0:00:55]} Nb8 {[%emt 0:02:35]} 17. Bb5 {[%emt 0:01:39]} Rf8 {[%emt 0:02:00]} 18. Qe2 {[%emt 0:02:31]} Kh8 {[%emt 0:15:09]} 19. Nf3 {[%emt 0:03:07]} Nc6 {[%emt 0:07:09]} 20. Na4 {[%emt 0:05:46]} f5 {[%emt 0:07:15]} 21. Rc2 {[%emt 0:07:48]} f4 {[%emt 0:03:49]} 22. Rec1 {[%emt 0:04:04]} Na7 {[%emt 0:01:59]} 23. Bd3 {[%emt 0:00:29]} fxg3 {[%emt 0:02:30]} 24. hxg3 {[%emt 0:01:01]} b5 {[%emt 0:09:46]} 25. Nc5 {[%emt 0:01:11]} Bxc5 {[%emt 0:00:22]} 26. Rxc5 {[%emt 0:00:35]} Bc6 {[%emt 0:03:36]} 27. Bb1 {[%emt 0:03:46]} Qd7 {[%emt 0:08:12]} 28. Qd3 {[%emt 0:05:31]} g5 {[%emt 0:00:19]} 29. Kg2 {[%emt 0:00:11]} Qf7 {[%emt 0:03:40]} 30. Qe3 {[%emt 0:03:13]} Qg7 {[%emt 0:01:06]} 31. Bc3 {[%emt 0:01:35]} Rf7 {[%emt 0:00:55]} 32. Be1 {[%emt 0:02:38]} Rcf8 {[%emt 0:00:03]} 33. Nh2 {[%emt 0:00:11]} Bb7 {[%emt 0:01:18]} 34. Bxa5 {[%emt 0:03:54]} h5 {[%emt 0:00:56]} 35. Rc7 {[%emt 0:00:45]} h4 {[%emt 0:00:14]} 36. Ng4 {[%emt 0:01:23]} Nc8 {[%emt 0:01:54]} 37. Rxf7 {[%emt 0:01:05]} Rxf7 {[%emt 0:00:13]} 38. Bd8 {[%emt 0:00:48]} Qf8 {[%emt 0:01:08]} 39. Bxg5 {[%emt 0:01:44]} Rf3 {[%emt 0:00:02]} 40. Bf6+ {[%emt 0:00:26]} Rxf6 {[%emt 0:00:43]} 41. exf6 {[%emt 0:00:19]} Nd6 {[%emt 0:00:25]} 42. Rc7 {[%emt 0:00:32]} Nxf6 {[%emt 0:00:32]} 43. Qe5 {[%emt 0:00:16]} Nde4 {[%emt 0:00:46]} 44. Bxe4 {[%emt 0:00:23]} dxe4 {[%emt 0:00:18]} 45. Rxb7 {[%emt 0:00:09]} e3 {[%emt 0:00:10]} 46. Qxf6+ {[%emt 0:00:06]} Qxf6 {[%emt 0:00:08]} 47. Nxf6 {[%emt 0:00:01]} e2 {[%emt 0:00:05]} 48. Rh7# {[%emt 0:00:04]} 1-0

[Event "33rd Croatian Junior League 2024"]
[Site "Novalja"]
[Date "2024.04.04"]
[Round "4.6"]
[White "Dumancic, Simun"]
[Black "Franc, Borna"]
[Result "0-1"]
[ECO "C97"]
[WhiteElo "2027"]
[BlackElo "2221"]
[Annotator "RC"]
[PlyCount "92"]
[EventDate "2024.03.28"]
[EventType "team-tourn"]
[EventCountry "CRO"]
[SourceTitle "playchess.com"]
[Source "ChessBase"]
[SourceQuality "1"]
[TimeControl "5400+30"]

1. e4 {[%emt 0:00:49]} e5 {[%emt 0:00:02]} 2. Nf3 {[%emt 0:00:28]} Nc6 {[%emt 0:00:06]} 3. Bb5 {[%emt 0:00:08]} a6 {[%emt 0:00:04]} 4. Ba4 {[%emt 0:00:14]} Nf6 {[%emt 0:00:03]} 5. O-O {[%emt 0:00:17]} Be7 {[%emt 0:00:05]} 6. Re1 {[%emt 0:00:11]} b5 {[%emt 0:00:04]} 7. Bb3 {[%emt 0:00:06]} O-O {[%emt 0:00:03]} 8. h3 {[%emt 0:00:25]} d6 {[%emt 0:00:09]} 9. c3 {[%emt 0:00:09]} Na5 {[%emt 0:00:27]} 10. Bc2 {[%emt 0:00:30]} c5 {[%emt 0:00:03]} 11. d4 {[%emt 0:00:20]} Qc7 {[%emt 0:00:03]} 12. d5 {[%emt 0:19:04]} Bd7 {[%emt 0:00:30]} 13. Nbd2 {[%emt 0:00:30]} c4 {[%emt 0:00:30]} 14. Nf1 {[%emt 0:00:30]} Nb7 {[%emt 0:00:30]} 15. Ng3 a5 {[%emt 0:00:00]} 16. Nh4 {[%emt 0:05:26]} g6 {[%emt 0:00:00]} 17. f4 {[%emt 0:09:15]} Nxe4 {[%emt 0:14:03]} 18. Nxg6 {[%emt 0:00:18]} fxg6 {[%emt 0:00:19]} 19. Rxe4 {[%emt 0:07:17]} Bh4 {[%emt 0:02:48]} 20. Ne2 {[%emt 0:09:27]} Bf5 {[%emt 0:05:33]} 21. fxe5 {[%emt 0:03:37]} Bxe4 {[%emt 0:00:24]} 22. Bxe4 {[%emt 0:00:05]} Qc5+ {[%emt 0:01:55]} 23. Kh2 {[%emt 0:02:03]} dxe5 {[%emt 0:02:59]} 24. Bh6 {[%emt 0:07:54]} Nd6 {[%emt 0:04:25]} 25. Bxf8 {[%emt 0:01:49]} Rxf8 {[%emt 0:00:02]} 26. Bf3 {[%emt 0:03:14]} Rxf3 {[%emt 0:04:15]} 27. gxf3 {[%emt 0:00:45]} Qf2+ {[%emt 0:00:10]} 28. Kh1 {[%emt 0:29:39]} Qxf3+ {[%emt 0:00:28]} 29. Kh2 {[%emt 0:00:00]} Qf2+ {[%emt 0:00:11]} 30. Kh1 {[%emt 0:00:00]} Ne4 {[%emt 0:00:19]} 31. Qf1 {[%emt 0:00:00]} Qxe2 {[%emt 0:00:08]} 32. Qxe2 {[%emt 0:00:00]} Ng3+ {[%emt 0:00:02]} 33. Kg2 {[%emt 0:00:00]} Nxe2 {[%emt 0:00:04]} 34. Kf3 {[%emt 0:00:00]} Nf4 {[%emt 0:00:04]} 35. Ke4 {[%emt 0:00:00]} Nd3 {[%emt 0:01:42]} 36. Rb1 {[%emt 0:00:00]} Bf6 {[%emt 0:01:06]} 37. d6 {[%emt 0:00:00]} Kf7 {[%emt 0:00:43]} 38. Kd5 {[%emt 0:00:00]} e4 {[%emt 0:06:39]} 39. Rf1 {[%emt 0:00:00]} e3 {[%emt 0:00:55]} 40. d7 {[%emt 0:04:31]} Ke7 {[%emt 0:00:05]} 41. Rxf6 {[%emt 0:00:34]} Kxd7 {[%emt 0:00:02]} 42. Rd6+ {[%emt 0:01:10]} Kc7 {[%emt 0:00:06]} 43. Rc6+ {[%emt 0:00:17]} Kb7 {[%emt 0:00:16]} 44. Kd6 {[%emt 0:00:33]} e2 {[%emt 0:00:09]} 45. Rc7+ {[%emt 0:00:13]} Kb8 {[%emt 0:00:03]} 46. Kd7 {[%emt 0:00:20]} Ne5+ {[%emt 0:00:02]} 0-1